{"text_format":"3","workbook":"xlsx","n_sheets":4,"sheets":["Début","PARAMÈTRES DU PROJET","DÉTAILS DU PROJET","TOTAUX DU PROJET"],"not_rendered":{"charts":2,"defined_names":3,"pivot_tables":1},"read":"whole","date_system":"1900"}

{"sheet":"Début","index":0,"n_rows":8,"n_cols":2,"rows_kept":8}
[null,"À PROPOS DE CE MODÈLE"]
[]
[null,"Utilisez ce classeur pour suivre les paramètres du projet, les détails du projet et les totaux du projet pendant la planification de projet pour les cabinets d’avocats."]
[null,"Renseignez votre propre nom d’entreprise dans la feuille de calcul des paramètres du projet et il est mis à jour automatiquement dans d’autres feuilles de calcul."]
[null,"Entrez des informations dans la feuille de calcul des paramètres du projet pour mettre à jour les histogrammes et dans la feuille de calcul détails du projet. Le tableau croisé dynamique dans la feuille de calcul totaux du projet est mis à jour automatiquement"]
[null,"Remarque :  "]
[null,"Des instructions supplémentaires sont disponibles dans la colonne A de chaque feuille de calcul. Ce texte a été intentionnellement masqué. Pour supprimer le texte, sélectionnez la colonne A et choisissez SUPPRIMER. Pour afficher le texte, sélectionnez la colonne A et changez la couleur de la police."]
[null,"Pour en savoir plus sur les tableaux des feuilles de calcul, appuyez sur Maj puis sur F10 au sein d’un tableau, et sélectionnez les options TABLEAU et TEXTE DE REMPLACEMENT. Pour les tableaux croisés dynamiques de la feuille de calcul Totaux du projet, appuyez sur Maj puis F10 à l’intérieur du tableau, sélectionnez OPTIONS DU TABLEAU CROISÉ DYNAMIQUE, puis TEXTE DE REMPLACEMENT."]

{"sheet":"PARAMÈTRES DU PROJET","index":1,"n_rows":19,"n_cols":9,"rows_kept":19}
[null,"Mitchell, Morris, Ward, & Cook"]
[null,"Planification de projet pour les cabinets d’avocats"]
[null,{"$f":"B1&\" Confidentiel\"","v":"Mitchell, Morris, Ward, & Cook Confidentiel"}]
[null,"Les cellules ombrées sont calculées automatiquement. Vous n’avez pas besoin d’y entrer des valeurs."]
[null,"TYPE DE PROJET","PARTENAIRE GÉNÉRAL","AVOCAT D’AFFAIRES","AVOCAT PLAIDANT","AVOCAT SPÉCIALISTE DE LA PROPRIÉTÉ INTELLECTUELLE","AVOCAT SPÉCIALISTE DU DROIT DE LA FAILLITE","PERSONNEL ADMINISTRATIF","TOTAL"]
[null,"Fusion de société",{"v":0.1,"d":"10%"},{"v":0.4,"d":"40%"},{"v":0,"d":"0%"},{"v":0,"d":"0%"},{"v":0,"d":"0%"},{"v":0.5,"d":"50%"},{"$f":"SUM(Paramètres[[#This Row],[PARTENAIRE GÉNÉRAL]:[PERSONNEL ADMINISTRATIF]])","v":{"v":1,"d":"100%"}}]
[null,"Acquisition d’entreprise",{"v":0.1,"d":"10%"},{"v":0.4,"d":"40%"},{"v":0,"d":"0%"},{"v":0.1,"d":"10%"},{"v":0,"d":"0%"},{"v":0.4,"d":"40%"},{"$f":"SUM(Paramètres[[#This Row],[PARTENAIRE GÉNÉRAL]:[PERSONNEL ADMINISTRATIF]])","v":{"v":1,"d":"100%"}}]
[null,"Défense de responsabilité du produit",{"v":0.2,"d":"20%"},{"v":0,"d":"0%"},{"v":0.5,"d":"50%"},{"v":0,"d":"0%"},{"v":0,"d":"0%"},{"v":0.3,"d":"30%"},{"$f":"SUM(Paramètres[[#This Row],[PARTENAIRE GÉNÉRAL]:[PERSONNEL ADMINISTRATIF]])","v":{"v":1,"d":"100%"}}]
[null,"Application de brevet",{"v":0.1,"d":"10%"},{"v":0,"d":"0%"},{"v":0,"d":"0%"},{"v":0.6,"d":"60%"},{"v":0,"d":"0%"},{"v":0.3,"d":"30%"},{"$f":"SUM(Paramètres[[#This Row],[PARTENAIRE GÉNÉRAL]:[PERSONNEL ADMINISTRATIF]])","v":{"v":1,"d":"100%"}}]
[null,"Poursuite de l’employé",{"v":0.2,"d":"20%"},{"v":0.1,"d":"10%"},{"v":0.4,"d":"40%"},{"v":0,"d":"0%"},{"v":0,"d":"0%"},{"v":0.3,"d":"30%"},{"$f":"SUM(Paramètres[[#This Row],[PARTENAIRE GÉNÉRAL]:[PERSONNEL ADMINISTRATIF]])","v":{"v":1,"d":"100%"}}]
[null,"Faillite",{"v":0.1,"d":"10%"},{"v":0.2,"d":"20%"},{"v":0,"d":"0%"},{"v":0,"d":"0%"},{"v":0.4,"d":"40%"},{"v":0.3,"d":"30%"},{"$f":"SUM(Paramètres[[#This Row],[PARTENAIRE GÉNÉRAL]:[PERSONNEL ADMINISTRATIF]])","v":{"v":1,"d":"100%"}}]
[null,"Prix combinés",{"v":350,"d":"350 €"},{"v":250,"d":"250 €"},{"v":300,"d":"300 €"},{"v":275,"d":"275 €"},{"v":225,"d":"225 €"},{"v":125,"d":"125 €"}]
[]
[]
[]
[null,"COÛT PRÉVU",{"$f":"SUBTOTAL(109,Détails[PARTENAIRE GÉNÉRAL])","v":{"v":78750,"d":"78,750.00 €"}},{"$f":"SUBTOTAL(109,Détails[AVOCAT D’AFFAIRES])","v":{"v":66250,"d":"66,250.00 €"}},{"$f":"SUBTOTAL(109,Détails[AVOCAT PLAIDANT])","v":{"v":105000,"d":"105,000.00 €"}},{"$f":"SUBTOTAL(109,Détails[AVOCAT SPÉCIALISTE DE LA PROPRIÉTÉ INTELLECTUELLE])","v":{"v":35750,"d":"35,750.00 €"}},{"$f":"SUBTOTAL(109,Détails[AVOCAT SPÉCIALISTE DU DROIT DE LA FAILLITE])","v":{"v":0,"d":"0.00 €"}},{"$f":"SUBTOTAL(109,Détails[PERSONNEL ADMINISTRATIF])","v":{"v":66250,"d":"66,250.00 €"}}]
[null,"COÛT RÉEL",{"$f":"SUBTOTAL(109,Détails[PARTENAIRE GÉNÉRAL 2])","v":{"v":79275,"d":"79,275.00 €"}},{"$f":"SUBTOTAL(109,Détails[AVOCAT D’AFFAIRES 2])","v":{"v":67375,"d":"67,375.00 €"}},{"$f":"SUBTOTAL(109,Détails[AVOCAT PLAIDANT 2])","v":{"v":105600,"d":"105,600.00 €"}},{"$f":"SUBTOTAL(109,Détails[AVOCAT SPÉCIALISTE DE LA PROPRIÉTÉ INTELLECTUELLE 2])","v":{"v":34650,"d":"34,650.00 €"}},{"$f":"SUBTOTAL(109,Détails[AVOCAT SPÉCIALISTE DU DROIT DE LA FAILLITE 2])","v":{"v":0,"d":"0.00 €"}},{"$f":"SUBTOTAL(109,Détails[PERSONNEL ADMINISTRATIF 2])","v":{"v":67000,"d":"67,000.00 €"}}]
[null,"HEURES PRÉVUES",{"$f":"C16/$C$12","v":{"v":225,"d":"225.00"}},{"$f":"D16/$C$12","v":{"v":189.28571428571428,"d":"189.29"}},{"v":300,"d":"300.00"},{"v":102.14285714285714,"d":"102.14"},{"v":0,"d":"0.00"},{"v":189.28571428571428,"d":"189.29"}]
[null,"HEURES RÉELLES",{"$f":"C17/$C$12","v":{"v":226.5,"d":"226.50"}},{"$f":"D17/$C$12","v":{"v":192.5,"d":"192.50"}},{"$f":"E17/$C$12","v":{"v":301.7142857142857,"d":"301.71"}},{"$f":"F17/$C$12","v":{"v":99,"d":"99.00"}},{"$f":"G17/$C$12","v":{"v":0,"d":"0.00"}},{"$f":"H17/$C$12","v":{"v":191.42857142857142,"d":"191.43"}}]

{"sheet":"DÉTAILS DU PROJET","index":2,"n_rows":10,"n_cols":25,"rows_kept":10,"merged":[[1,24,8,28]]}
[null,{"$f":"'PARAMÈTRES DU PROJET'!B1","v":"Mitchell, Morris, Ward, & Cook"}]
[null,{"$f":"'PARAMÈTRES DU PROJET'!B2","v":"Planification de projet pour les cabinets d’avocats"},{"$nulls":22},"INFORMATIONS :\nPour ajouter une ligne, cliquez dans la cellule située le plus en bas à droite dans le corps du tableau (au-dessus de la ligne de total) et appuyez sur Tab, ou appuyez sur Maj puis sur F10 là où vous voulez insérer la ligne et sélectionnez Insertion | Lignes de tableau au-dessus/en dessous.\nVeillez à supprimer toutes les lignes non utilisées, sans quoi le tableau croisé dynamique TOTAUX DU PROJET, qui utilise l’ensemble des cellules des tableaux, produirait des résultats erronés."]
[null,{"$f":"'PARAMÈTRES DU PROJET'!B3","v":"Mitchell, Morris, Ward, & Cook Confidentiel"}]
[null,"NOM DU PROJET","TYPE DE PROJET","DATE DE DÉBUT ESTIMÉE","DATE DE FIN ESTIMÉE","DATE DE DÉBUT RÉELLE","DATE DE FIN RÉELLE","HEURES DE TRAVAIL (ESTIMÉES)","HEURES DE TRAVAIL (RÉELLES)","DURÉE ESTIMÉE","DURÉE RÉELLE","PARTENAIRE GÉNÉRAL","AVOCAT D’AFFAIRES","AVOCAT PLAIDANT","AVOCAT SPÉCIALISTE DE LA PROPRIÉTÉ INTELLECTUELLE","AVOCAT SPÉCIALISTE DU DROIT DE LA FAILLITE","PERSONNEL ADMINISTRATIF","PARTENAIRE GÉNÉRAL 2","AVOCAT D’AFFAIRES 2","AVOCAT PLAIDANT 2","AVOCAT SPÉCIALISTE DE LA PROPRIÉTÉ INTELLECTUELLE 2","AVOCAT SPÉCIALISTE DU DROIT DE LA FAILLITE 2","PERSONNEL ADMINISTRATIF 2"]
[null,"Europe","Fusion de société",{"$f":"TODAY()","v":"2023-03-29"},{"$f":"TODAY()+60","v":"2023-05-28"},{"$f":"TODAY()+10","v":"2023-04-08"},{"$f":"TODAY()+65","v":"2023-06-02"},200,220,{"$f":"DAYS360(Détails[[#This Row],[DATE DE DÉBUT ESTIMÉE]],Détails[[#This Row],[DATE DE FIN ESTIMÉE]],FALSE)","v":59},{"$f":"DAYS360(Détails[[#This Row],[DATE DE DÉBUT RÉELLE]],Détails[[#This Row],[DATE DE FIN RÉELLE]],FALSE)","v":54},{"$f":"INDEX(Paramètres[],MATCH(Détails[[#This Row],[TYPE DE PROJET]],Paramètres[TYPE DE PROJET],0),MATCH(Détails[[#Headers],[PARTENAIRE GÉNÉRAL]],Paramètres[#Headers],0))*INDEX('PARAMÈTRES DU PROJET'!$B$12:$H$12,1,MATCH(Détails[[#Headers],[PARTENAIRE GÉNÉRAL]],Paramètres[#Headers],0))*Détails[[#This Row],[HEURES DE TRAVAIL (ESTIMÉES)]]","v":{"v":7000,"d":"7,000 €"}},{"$f":"INDEX(Paramètres[],MATCH(Détails[[#This Row],[TYPE DE PROJET]],Paramètres[TYPE DE PROJET],0),MATCH(Détails[[#Headers],[AVOCAT D’AFFAIRES]],Paramètres[#Headers],0))*INDEX('PARAMÈTRES DU PROJET'!$B$12:$H$12,1,MATCH(Détails[[#Headers],[AVOCAT D’AFFAIRES]],Paramètres[#Headers],0))*Détails[[#This Row],[HEURES DE TRAVAIL (ESTIMÉES)]]","v":{"v":20000,"d":"20,000 €"}},{"$f":"INDEX(Paramètres[],MATCH(Détails[[#This Row],[TYPE DE PROJET]],Paramètres[TYPE DE PROJET],0),MATCH(Détails[[#Headers],[AVOCAT PLAIDANT]],Paramètres[#Headers],0))*INDEX('PARAMÈTRES DU PROJET'!$B$12:$H$12,1,MATCH(Détails[[#Headers],[AVOCAT PLAIDANT]],Paramètres[#Headers],0))*Détails[[#This Row],[HEURES DE TRAVAIL (ESTIMÉES)]]","v":{"v":0,"d":"0 €"}},{"$f":"INDEX(Paramètres[],MATCH(Détails[[#This Row],[TYPE DE PROJET]],Paramètres[TYPE DE PROJET],0),MATCH(Détails[[#Headers],[AVOCAT SPÉCIALISTE DE LA PROPRIÉTÉ INTELLECTUELLE]],Paramètres[#Headers],0))*INDEX('PARAMÈTRES DU PROJET'!$B$12:$H$12,1,MATCH(Détails[[#Headers],[AVOCAT SPÉCIALISTE DE LA PROPRIÉTÉ INTELLECTUELLE]],Paramètres[#Headers],0))*Détails[[#This Row],[HEURES DE TRAVAIL (ESTIMÉES)]]","v":{"v":0,"d":"0 €"}},{"$f":"INDEX(Paramètres[],MATCH(Détails[[#This Row],[TYPE DE PROJET]],Paramètres[TYPE DE PROJET],0),MATCH(Détails[[#Headers],[AVOCAT SPÉCIALISTE DU DROIT DE LA FAILLITE]],Paramètres[#Headers],0))*INDEX('PARAMÈTRES DU PROJET'!$B$12:$H$12,1,MATCH(Détails[[#Headers],[AVOCAT SPÉCIALISTE DU DROIT DE LA FAILLITE]],Paramètres[#Headers],0))*Détails[[#This Row],[HEURES DE TRAVAIL (ESTIMÉES)]]","v":{"v":0,"d":"0 €"}},{"$f":"INDEX(Paramètres[],MATCH(Détails[[#This Row],[TYPE DE PROJET]],Paramètres[TYPE DE PROJET],0),MATCH(Détails[[#Headers],[PERSONNEL ADMINISTRATIF]],Paramètres[#Headers],0))*INDEX('PARAMÈTRES DU PROJET'!$B$12:$H$12,1,MATCH(Détails[[#Headers],[PERSONNEL ADMINISTRATIF]],Paramètres[#Headers],0))*Détails[[#This Row],[HEURES DE TRAVAIL (ESTIMÉES)]]","v":{"v":12500,"d":"12,500 €"}},{"$f":"INDEX(Paramètres[],MATCH(Détails[[#This Row],[TYPE DE PROJET]],Paramètres[TYPE DE PROJET],0),MATCH(Détails[[#Headers],[PARTENAIRE GÉNÉRAL]],Paramètres[#Headers],0))*INDEX('PARAMÈTRES DU PROJET'!$B$12:$H$12,1,MATCH(Détails[[#Headers],[PARTENAIRE GÉNÉRAL]],Paramètres[#Headers],0))*Détails[[#This Row],[HEURES DE TRAVAIL (RÉELLES)]]","v":{"v":7700,"d":"7,700 €"}},{"$f":"INDEX(Paramètres[],MATCH(Détails[[#This Row],[TYPE DE PROJET]],Paramètres[TYPE DE PROJET],0),MATCH(Détails[[#Headers],[AVOCAT D’AFFAIRES]],Paramètres[#Headers],0))*INDEX('PARAMÈTRES DU PROJET'!$B$12:$H$12,1,MATCH(Détails[[#Headers],[AVOCAT D’AFFAIRES]],Paramètres[#Headers],0))*Détails[[#This Row],[HEURES DE TRAVAIL (RÉELLES)]]","v":{"v":22000,"d":"22,000 €"}},{"$f":"INDEX(Paramètres[],MATCH(Détails[[#This Row],[TYPE DE PROJET]],Paramètres[TYPE DE PROJET],0),MATCH(Détails[[#Headers],[AVOCAT PLAIDANT]],Paramètres[#Headers],0))*INDEX('PARAMÈTRES DU PROJET'!$B$12:$H$12,1,MATCH(Détails[[#Headers],[AVOCAT PLAIDANT]],Paramètres[#Headers],0))*Détails[[#This Row],[HEURES DE TRAVAIL (RÉELLES)]]","v":{"v":0,"d":"0 €"}},{"$f":"INDEX(Paramètres[],MATCH(Détails[[#This Row],[TYPE DE PROJET]],Paramètres[TYPE DE PROJET],0),MATCH(Détails[[#Headers],[AVOCAT SPÉCIALISTE DE LA PROPRIÉTÉ INTELLECTUELLE]],Paramètres[#Headers],0))*INDEX('PARAMÈTRES DU PROJET'!$B$12:$H$12,1,MATCH(Détails[[#Headers],[AVOCAT SPÉCIALISTE DE LA PROPRIÉTÉ INTELLECTUELLE]],Paramètres[#Headers],0))*Détails[[#This Row],[HEURES DE TRAVAIL (RÉELLES)]]","v":{"v":0,"d":"0 €"}},{"$f":"INDEX(Paramètres[],MATCH(Détails[[#This Row],[TYPE DE PROJET]],Paramètres[TYPE DE PROJET],0),MATCH(Détails[[#Headers],[AVOCAT SPÉCIALISTE DU DROIT DE LA FAILLITE]],Paramètres[#Headers],0))*INDEX('PARAMÈTRES DU PROJET'!$B$12:$H$12,1,MATCH(Détails[[#Headers],[AVOCAT SPÉCIALISTE DU DROIT DE LA FAILLITE]],Paramètres[#Headers],0))*Détails[[#This Row],[HEURES DE TRAVAIL (RÉELLES)]]","v":{"v":0,"d":"0 €"}},{"$f":"INDEX(Paramètres[],MATCH(Détails[[#This Row],[TYPE DE PROJET]],Paramètres[TYPE DE PROJET],0),MATCH(Détails[[#Headers],[PERSONNEL ADMINISTRATIF]],Paramètres[#Headers],0))*INDEX('PARAMÈTRES DU PROJET'!$B$12:$H$12,1,MATCH(Détails[[#Headers],[PERSONNEL ADMINISTRATIF]],Paramètres[#Headers],0))*Détails[[#This Row],[HEURES DE TRAVAIL (RÉELLES)]]","v":{"v":13750,"d":"13,750 €"}}]
[null,"Poisson rouge","Acquisition d’entreprise",{"$f":"TODAY()+30","v":"2023-04-28"},{"$f":"TODAY()+100","v":"2023-07-07"},{"$f":"TODAY()+40","v":"2023-05-08"},{"$f":"TODAY()+110","v":"2023-07-17"},400,390,{"$f":"DAYS360(Détails[[#This Row],[DATE DE DÉBUT ESTIMÉE]],Détails[[#This Row],[DATE DE FIN ESTIMÉE]],FALSE)","v":69},{"$f":"DAYS360(Détails[[#This Row],[DATE DE DÉBUT RÉELLE]],Détails[[#This Row],[DATE DE FIN RÉELLE]],FALSE)","v":69},{"$f":"INDEX(Paramètres[],MATCH(Détails[[#This Row],[TYPE DE PROJET]],Paramètres[TYPE DE PROJET],0),MATCH(Détails[[#Headers],[PARTENAIRE GÉNÉRAL]],Paramètres[#Headers],0))*INDEX('PARAMÈTRES DU PROJET'!$B$12:$H$12,1,MATCH(Détails[[#Headers],[PARTENAIRE GÉNÉRAL]],Paramètres[#Headers],0))*Détails[[#This Row],[HEURES DE TRAVAIL (ESTIMÉES)]]","v":{"v":14000,"d":"14,000 €"}},{"$f":"INDEX(Paramètres[],MATCH(Détails[[#This Row],[TYPE DE PROJET]],Paramètres[TYPE DE PROJET],0),MATCH(Détails[[#Headers],[AVOCAT D’AFFAIRES]],Paramètres[#Headers],0))*INDEX('PARAMÈTRES DU PROJET'!$B$12:$H$12,1,MATCH(Détails[[#Headers],[AVOCAT D’AFFAIRES]],Paramètres[#Headers],0))*Détails[[#This Row],[HEURES DE TRAVAIL (ESTIMÉES)]]","v":{"v":40000,"d":"40,000 €"}},{"$f":"INDEX(Paramètres[],MATCH(Détails[[#This Row],[TYPE DE PROJET]],Paramètres[TYPE DE PROJET],0),MATCH(Détails[[#Headers],[AVOCAT PLAIDANT]],Paramètres[#Headers],0))*INDEX('PARAMÈTRES DU PROJET'!$B$12:$H$12,1,MATCH(Détails[[#Headers],[AVOCAT PLAIDANT]],Paramètres[#Headers],0))*Détails[[#This Row],[HEURES DE TRAVAIL (ESTIMÉES)]]","v":{"v":0,"d":"0 €"}},{"$f":"INDEX(Paramètres[],MATCH(Détails[[#This Row],[TYPE DE PROJET]],Paramètres[TYPE DE PROJET],0),MATCH(Détails[[#Headers],[AVOCAT SPÉCIALISTE DE LA PROPRIÉTÉ INTELLECTUELLE]],Paramètres[#Headers],0))*INDEX('PARAMÈTRES DU PROJET'!$B$12:$H$12,1,MATCH(Détails[[#Headers],[AVOCAT SPÉCIALISTE DE LA PROPRIÉTÉ INTELLECTUELLE]],Paramètres[#Headers],0))*Détails[[#This Row],[HEURES DE TRAVAIL (ESTIMÉES)]]","v":{"v":11000,"d":"11,000 €"}},{"$f":"INDEX(Paramètres[],MATCH(Détails[[#This Row],[TYPE DE PROJET]],Paramètres[TYPE DE PROJET],0),MATCH(Détails[[#Headers],[AVOCAT SPÉCIALISTE DU DROIT DE LA FAILLITE]],Paramètres[#Headers],0))*INDEX('PARAMÈTRES DU PROJET'!$B$12:$H$12,1,MATCH(Détails[[#Headers],[AVOCAT SPÉCIALISTE DU DROIT DE LA FAILLITE]],Paramètres[#Headers],0))*Détails[[#This Row],[HEURES DE TRAVAIL (ESTIMÉES)]]","v":{"v":0,"d":"0 €"}},{"$f":"INDEX(Paramètres[],MATCH(Détails[[#This Row],[TYPE DE PROJET]],Paramètres[TYPE DE PROJET],0),MATCH(Détails[[#Headers],[PERSONNEL ADMINISTRATIF]],Paramètres[#Headers],0))*INDEX('PARAMÈTRES DU PROJET'!$B$12:$H$12,1,MATCH(Détails[[#Headers],[PERSONNEL ADMINISTRATIF]],Paramètres[#Headers],0))*Détails[[#This Row],[HEURES DE TRAVAIL (ESTIMÉES)]]","v":{"v":20000,"d":"20,000 €"}},{"$f":"INDEX(Paramètres[],MATCH(Détails[[#This Row],[TYPE DE PROJET]],Paramètres[TYPE DE PROJET],0),MATCH(Détails[[#Headers],[PARTENAIRE GÉNÉRAL]],Paramètres[#Headers],0))*INDEX('PARAMÈTRES DU PROJET'!$B$12:$H$12,1,MATCH(Détails[[#Headers],[PARTENAIRE GÉNÉRAL]],Paramètres[#Headers],0))*Détails[[#This Row],[HEURES DE TRAVAIL (RÉELLES)]]","v":{"v":13650,"d":"13,650 €"}},{"$f":"INDEX(Paramètres[],MATCH(Détails[[#This Row],[TYPE DE PROJET]],Paramètres[TYPE DE PROJET],0),MATCH(Détails[[#Headers],[AVOCAT D’AFFAIRES]],Paramètres[#Headers],0))*INDEX('PARAMÈTRES DU PROJET'!$B$12:$H$12,1,MATCH(Détails[[#Headers],[AVOCAT D’AFFAIRES]],Paramètres[#Headers],0))*Détails[[#This Row],[HEURES DE TRAVAIL (RÉELLES)]]","v":{"v":39000,"d":"39,000 €"}},{"$f":"INDEX(Paramètres[],MATCH(Détails[[#This Row],[TYPE DE PROJET]],Paramètres[TYPE DE PROJET],0),MATCH(Détails[[#Headers],[AVOCAT PLAIDANT]],Paramètres[#Headers],0))*INDEX('PARAMÈTRES DU PROJET'!$B$12:$H$12,1,MATCH(Détails[[#Headers],[AVOCAT PLAIDANT]],Paramètres[#Headers],0))*Détails[[#This Row],[HEURES DE TRAVAIL (RÉELLES)]]","v":{"v":0,"d":"0 €"}},{"$f":"INDEX(Paramètres[],MATCH(Détails[[#This Row],[TYPE DE PROJET]],Paramètres[TYPE DE PROJET],0),MATCH(Détails[[#Headers],[AVOCAT SPÉCIALISTE DE LA PROPRIÉTÉ INTELLECTUELLE]],Paramètres[#Headers],0))*INDEX('PARAMÈTRES DU PROJET'!$B$12:$H$12,1,MATCH(Détails[[#Headers],[AVOCAT SPÉCIALISTE DE LA PROPRIÉTÉ INTELLECTUELLE]],Paramètres[#Headers],0))*Détails[[#This Row],[HEURES DE TRAVAIL (RÉELLES)]]","v":{"v":10725,"d":"10,725 €"}},{"$f":"INDEX(Paramètres[],MATCH(Détails[[#This Row],[TYPE DE PROJET]],Paramètres[TYPE DE PROJET],0),MATCH(Détails[[#Headers],[AVOCAT SPÉCIALISTE DU DROIT DE LA FAILLITE]],Paramètres[#Headers],0))*INDEX('PARAMÈTRES DU PROJET'!$B$12:$H$12,1,MATCH(Détails[[#Headers],[AVOCAT SPÉCIALISTE DU DROIT DE LA FAILLITE]],Paramètres[#Headers],0))*Détails[[#This Row],[HEURES DE TRAVAIL (RÉELLES)]]","v":{"v":0,"d":"0 €"}},{"$f":"INDEX(Paramètres[],MATCH(Détails[[#This Row],[TYPE DE PROJET]],Paramètres[TYPE DE PROJET],0),MATCH(Détails[[#Headers],[PERSONNEL ADMINISTRATIF]],Paramètres[#Headers],0))*INDEX('PARAMÈTRES DU PROJET'!$B$12:$H$12,1,MATCH(Détails[[#Headers],[PERSONNEL ADMINISTRATIF]],Paramètres[#Headers],0))*Détails[[#This Row],[HEURES DE TRAVAIL (RÉELLES)]]","v":{"v":19500,"d":"19,500 €"}}]
[null,"Cobalt","Défense de responsabilité du produit",{"$f":"TODAY()+150","v":"2023-08-26"},{"$f":"TODAY()+150","v":"2023-08-26"},{"$f":"TODAY()+150","v":"2023-08-26"},{"$f":"TODAY()+170","v":"2023-09-15"},500,500,{"$f":"DAYS360(Détails[[#This Row],[DATE DE DÉBUT ESTIMÉE]],Détails[[#This Row],[DATE DE FIN ESTIMÉE]],FALSE)","v":0},{"$f":"DAYS360(Détails[[#This Row],[DATE DE DÉBUT RÉELLE]],Détails[[#This Row],[DATE DE FIN RÉELLE]],FALSE)","v":19},{"$f":"INDEX(Paramètres[],MATCH(Détails[[#This Row],[TYPE DE PROJET]],Paramètres[TYPE DE PROJET],0),MATCH(Détails[[#Headers],[PARTENAIRE GÉNÉRAL]],Paramètres[#Headers],0))*INDEX('PARAMÈTRES DU PROJET'!$B$12:$H$12,1,MATCH(Détails[[#Headers],[PARTENAIRE GÉNÉRAL]],Paramètres[#Headers],0))*Détails[[#This Row],[HEURES DE TRAVAIL (ESTIMÉES)]]","v":{"v":35000,"d":"35,000 €"}},{"$f":"INDEX(Paramètres[],MATCH(Détails[[#This Row],[TYPE DE PROJET]],Paramètres[TYPE DE PROJET],0),MATCH(Détails[[#Headers],[AVOCAT D’AFFAIRES]],Paramètres[#Headers],0))*INDEX('PARAMÈTRES DU PROJET'!$B$12:$H$12,1,MATCH(Détails[[#Headers],[AVOCAT D’AFFAIRES]],Paramètres[#Headers],0))*Détails[[#This Row],[HEURES DE TRAVAIL (ESTIMÉES)]]","v":{"v":0,"d":"0 €"}},{"$f":"INDEX(Paramètres[],MATCH(Détails[[#This Row],[TYPE DE PROJET]],Paramètres[TYPE DE PROJET],0),MATCH(Détails[[#Headers],[AVOCAT PLAIDANT]],Paramètres[#Headers],0))*INDEX('PARAMÈTRES DU PROJET'!$B$12:$H$12,1,MATCH(Détails[[#Headers],[AVOCAT PLAIDANT]],Paramètres[#Headers],0))*Détails[[#This Row],[HEURES DE TRAVAIL (ESTIMÉES)]]","v":{"v":75000,"d":"75,000 €"}},{"$f":"INDEX(Paramètres[],MATCH(Détails[[#This Row],[TYPE DE PROJET]],Paramètres[TYPE DE PROJET],0),MATCH(Détails[[#Headers],[AVOCAT SPÉCIALISTE DE LA PROPRIÉTÉ INTELLECTUELLE]],Paramètres[#Headers],0))*INDEX('PARAMÈTRES DU PROJET'!$B$12:$H$12,1,MATCH(Détails[[#Headers],[AVOCAT SPÉCIALISTE DE LA PROPRIÉTÉ INTELLECTUELLE]],Paramètres[#Headers],0))*Détails[[#This Row],[HEURES DE TRAVAIL (ESTIMÉES)]]","v":{"v":0,"d":"0 €"}},{"$f":"INDEX(Paramètres[],MATCH(Détails[[#This Row],[TYPE DE PROJET]],Paramètres[TYPE DE PROJET],0),MATCH(Détails[[#Headers],[AVOCAT SPÉCIALISTE DU DROIT DE LA FAILLITE]],Paramètres[#Headers],0))*INDEX('PARAMÈTRES DU PROJET'!$B$12:$H$12,1,MATCH(Détails[[#Headers],[AVOCAT SPÉCIALISTE DU DROIT DE LA FAILLITE]],Paramètres[#Headers],0))*Détails[[#This Row],[HEURES DE TRAVAIL (ESTIMÉES)]]","v":{"v":0,"d":"0 €"}},{"$f":"INDEX(Paramètres[],MATCH(Détails[[#This Row],[TYPE DE PROJET]],Paramètres[TYPE DE PROJET],0),MATCH(Détails[[#Headers],[PERSONNEL ADMINISTRATIF]],Paramètres[#Headers],0))*INDEX('PARAMÈTRES DU PROJET'!$B$12:$H$12,1,MATCH(Détails[[#Headers],[PERSONNEL ADMINISTRATIF]],Paramètres[#Headers],0))*Détails[[#This Row],[HEURES DE TRAVAIL (ESTIMÉES)]]","v":{"v":18750,"d":"18,750 €"}},{"$f":"INDEX(Paramètres[],MATCH(Détails[[#This Row],[TYPE DE PROJET]],Paramètres[TYPE DE PROJET],0),MATCH(Détails[[#Headers],[PARTENAIRE GÉNÉRAL]],Paramètres[#Headers],0))*INDEX('PARAMÈTRES DU PROJET'!$B$12:$H$12,1,MATCH(Détails[[#Headers],[PARTENAIRE GÉNÉRAL]],Paramètres[#Headers],0))*Détails[[#This Row],[HEURES DE TRAVAIL (RÉELLES)]]","v":{"v":35000,"d":"35,000 €"}},{"$f":"INDEX(Paramètres[],MATCH(Détails[[#This Row],[TYPE DE PROJET]],Paramètres[TYPE DE PROJET],0),MATCH(Détails[[#Headers],[AVOCAT D’AFFAIRES]],Paramètres[#Headers],0))*INDEX('PARAMÈTRES DU PROJET'!$B$12:$H$12,1,MATCH(Détails[[#Headers],[AVOCAT D’AFFAIRES]],Paramètres[#Headers],0))*Détails[[#This Row],[HEURES DE TRAVAIL (RÉELLES)]]","v":{"v":0,"d":"0 €"}},{"$f":"INDEX(Paramètres[],MATCH(Détails[[#This Row],[TYPE DE PROJET]],Paramètres[TYPE DE PROJET],0),MATCH(Détails[[#Headers],[AVOCAT PLAIDANT]],Paramètres[#Headers],0))*INDEX('PARAMÈTRES DU PROJET'!$B$12:$H$12,1,MATCH(Détails[[#Headers],[AVOCAT PLAIDANT]],Paramètres[#Headers],0))*Détails[[#This Row],[HEURES DE TRAVAIL (RÉELLES)]]","v":{"v":75000,"d":"75,000 €"}},{"$f":"INDEX(Paramètres[],MATCH(Détails[[#This Row],[TYPE DE PROJET]],Paramètres[TYPE DE PROJET],0),MATCH(Détails[[#Headers],[AVOCAT SPÉCIALISTE DE LA PROPRIÉTÉ INTELLECTUELLE]],Paramètres[#Headers],0))*INDEX('PARAMÈTRES DU PROJET'!$B$12:$H$12,1,MATCH(Détails[[#Headers],[AVOCAT SPÉCIALISTE DE LA PROPRIÉTÉ INTELLECTUELLE]],Paramètres[#Headers],0))*Détails[[#This Row],[HEURES DE TRAVAIL (RÉELLES)]]","v":{"v":0,"d":"0 €"}},{"$f":"INDEX(Paramètres[],MATCH(Détails[[#This Row],[TYPE DE PROJET]],Paramètres[TYPE DE PROJET],0),MATCH(Détails[[#Headers],[AVOCAT SPÉCIALISTE DU DROIT DE LA FAILLITE]],Paramètres[#Headers],0))*INDEX('PARAMÈTRES DU PROJET'!$B$12:$H$12,1,MATCH(Détails[[#Headers],[AVOCAT SPÉCIALISTE DU DROIT DE LA FAILLITE]],Paramètres[#Headers],0))*Détails[[#This Row],[HEURES DE TRAVAIL (RÉELLES)]]","v":{"v":0,"d":"0 €"}},{"$f":"INDEX(Paramètres[],MATCH(Détails[[#This Row],[TYPE DE PROJET]],Paramètres[TYPE DE PROJET],0),MATCH(Détails[[#Headers],[PERSONNEL ADMINISTRATIF]],Paramètres[#Headers],0))*INDEX('PARAMÈTRES DU PROJET'!$B$12:$H$12,1,MATCH(Détails[[#Headers],[PERSONNEL ADMINISTRATIF]],Paramètres[#Headers],0))*Détails[[#This Row],[HEURES DE TRAVAIL (RÉELLES)]]","v":{"v":18750,"d":"18,750 €"}}]
[null,"Iris","Application de brevet",{"$f":"TODAY()+200","v":"2023-10-15"},{"$f":"TODAY()+230","v":"2023-11-14"},{"$f":"TODAY()+230","v":"2023-11-14"},{"$f":"TODAY()+230","v":"2023-11-14"},150,145,{"$f":"DAYS360(Détails[[#This Row],[DATE DE DÉBUT ESTIMÉE]],Détails[[#This Row],[DATE DE FIN ESTIMÉE]],FALSE)","v":29},{"$f":"DAYS360(Détails[[#This Row],[DATE DE DÉBUT RÉELLE]],Détails[[#This Row],[DATE DE FIN RÉELLE]],FALSE)","v":0},{"$f":"INDEX(Paramètres[],MATCH(Détails[[#This Row],[TYPE DE PROJET]],Paramètres[TYPE DE PROJET],0),MATCH(Détails[[#Headers],[PARTENAIRE GÉNÉRAL]],Paramètres[#Headers],0))*INDEX('PARAMÈTRES DU PROJET'!$B$12:$H$12,1,MATCH(Détails[[#Headers],[PARTENAIRE GÉNÉRAL]],Paramètres[#Headers],0))*Détails[[#This Row],[HEURES DE TRAVAIL (ESTIMÉES)]]","v":{"v":5250,"d":"5,250 €"}},{"$f":"INDEX(Paramètres[],MATCH(Détails[[#This Row],[TYPE DE PROJET]],Paramètres[TYPE DE PROJET],0),MATCH(Détails[[#Headers],[AVOCAT D’AFFAIRES]],Paramètres[#Headers],0))*INDEX('PARAMÈTRES DU PROJET'!$B$12:$H$12,1,MATCH(Détails[[#Headers],[AVOCAT D’AFFAIRES]],Paramètres[#Headers],0))*Détails[[#This Row],[HEURES DE TRAVAIL (ESTIMÉES)]]","v":{"v":0,"d":"0 €"}},{"$f":"INDEX(Paramètres[],MATCH(Détails[[#This Row],[TYPE DE PROJET]],Paramètres[TYPE DE PROJET],0),MATCH(Détails[[#Headers],[AVOCAT PLAIDANT]],Paramètres[#Headers],0))*INDEX('PARAMÈTRES DU PROJET'!$B$12:$H$12,1,MATCH(Détails[[#Headers],[AVOCAT PLAIDANT]],Paramètres[#Headers],0))*Détails[[#This Row],[HEURES DE TRAVAIL (ESTIMÉES)]]","v":{"v":0,"d":"0 €"}},{"$f":"INDEX(Paramètres[],MATCH(Détails[[#This Row],[TYPE DE PROJET]],Paramètres[TYPE DE PROJET],0),MATCH(Détails[[#Headers],[AVOCAT SPÉCIALISTE DE LA PROPRIÉTÉ INTELLECTUELLE]],Paramètres[#Headers],0))*INDEX('PARAMÈTRES DU PROJET'!$B$12:$H$12,1,MATCH(Détails[[#Headers],[AVOCAT SPÉCIALISTE DE LA PROPRIÉTÉ INTELLECTUELLE]],Paramètres[#Headers],0))*Détails[[#This Row],[HEURES DE TRAVAIL (ESTIMÉES)]]","v":{"v":24750,"d":"24,750 €"}},{"$f":"INDEX(Paramètres[],MATCH(Détails[[#This Row],[TYPE DE PROJET]],Paramètres[TYPE DE PROJET],0),MATCH(Détails[[#Headers],[AVOCAT SPÉCIALISTE DU DROIT DE LA FAILLITE]],Paramètres[#Headers],0))*INDEX('PARAMÈTRES DU PROJET'!$B$12:$H$12,1,MATCH(Détails[[#Headers],[AVOCAT SPÉCIALISTE DU DROIT DE LA FAILLITE]],Paramètres[#Headers],0))*Détails[[#This Row],[HEURES DE TRAVAIL (ESTIMÉES)]]","v":{"v":0,"d":"0 €"}},{"$f":"INDEX(Paramètres[],MATCH(Détails[[#This Row],[TYPE DE PROJET]],Paramètres[TYPE DE PROJET],0),MATCH(Détails[[#Headers],[PERSONNEL ADMINISTRATIF]],Paramètres[#Headers],0))*INDEX('PARAMÈTRES DU PROJET'!$B$12:$H$12,1,MATCH(Détails[[#Headers],[PERSONNEL ADMINISTRATIF]],Paramètres[#Headers],0))*Détails[[#This Row],[HEURES DE TRAVAIL (ESTIMÉES)]]","v":{"v":5625,"d":"5,625 €"}},{"$f":"INDEX(Paramètres[],MATCH(Détails[[#This Row],[TYPE DE PROJET]],Paramètres[TYPE DE PROJET],0),MATCH(Détails[[#Headers],[PARTENAIRE GÉNÉRAL]],Paramètres[#Headers],0))*INDEX('PARAMÈTRES DU PROJET'!$B$12:$H$12,1,MATCH(Détails[[#Headers],[PARTENAIRE GÉNÉRAL]],Paramètres[#Headers],0))*Détails[[#This Row],[HEURES DE TRAVAIL (RÉELLES)]]","v":{"v":5075,"d":"5,075 €"}},{"$f":"INDEX(Paramètres[],MATCH(Détails[[#This Row],[TYPE DE PROJET]],Paramètres[TYPE DE PROJET],0),MATCH(Détails[[#Headers],[AVOCAT D’AFFAIRES]],Paramètres[#Headers],0))*INDEX('PARAMÈTRES DU PROJET'!$B$12:$H$12,1,MATCH(Détails[[#Headers],[AVOCAT D’AFFAIRES]],Paramètres[#Headers],0))*Détails[[#This Row],[HEURES DE TRAVAIL (RÉELLES)]]","v":{"v":0,"d":"0 €"}},{"$f":"INDEX(Paramètres[],MATCH(Détails[[#This Row],[TYPE DE PROJET]],Paramètres[TYPE DE PROJET],0),MATCH(Détails[[#Headers],[AVOCAT PLAIDANT]],Paramètres[#Headers],0))*INDEX('PARAMÈTRES DU PROJET'!$B$12:$H$12,1,MATCH(Détails[[#Headers],[AVOCAT PLAIDANT]],Paramètres[#Headers],0))*Détails[[#This Row],[HEURES DE TRAVAIL (RÉELLES)]]","v":{"v":0,"d":"0 €"}},{"$f":"INDEX(Paramètres[],MATCH(Détails[[#This Row],[TYPE DE PROJET]],Paramètres[TYPE DE PROJET],0),MATCH(Détails[[#Headers],[AVOCAT SPÉCIALISTE DE LA PROPRIÉTÉ INTELLECTUELLE]],Paramètres[#Headers],0))*INDEX('PARAMÈTRES DU PROJET'!$B$12:$H$12,1,MATCH(Détails[[#Headers],[AVOCAT SPÉCIALISTE DE LA PROPRIÉTÉ INTELLECTUELLE]],Paramètres[#Headers],0))*Détails[[#This Row],[HEURES DE TRAVAIL (RÉELLES)]]","v":{"v":23925,"d":"23,925 €"}},{"$f":"INDEX(Paramètres[],MATCH(Détails[[#This Row],[TYPE DE PROJET]],Paramètres[TYPE DE PROJET],0),MATCH(Détails[[#Headers],[AVOCAT SPÉCIALISTE DU DROIT DE LA FAILLITE]],Paramètres[#Headers],0))*INDEX('PARAMÈTRES DU PROJET'!$B$12:$H$12,1,MATCH(Détails[[#Headers],[AVOCAT SPÉCIALISTE DU DROIT DE LA FAILLITE]],Paramètres[#Headers],0))*Détails[[#This Row],[HEURES DE TRAVAIL (RÉELLES)]]","v":{"v":0,"d":"0 €"}},{"$f":"INDEX(Paramètres[],MATCH(Détails[[#This Row],[TYPE DE PROJET]],Paramètres[TYPE DE PROJET],0),MATCH(Détails[[#Headers],[PERSONNEL ADMINISTRATIF]],Paramètres[#Headers],0))*INDEX('PARAMÈTRES DU PROJET'!$B$12:$H$12,1,MATCH(Détails[[#Headers],[PERSONNEL ADMINISTRATIF]],Paramètres[#Headers],0))*Détails[[#This Row],[HEURES DE TRAVAIL (RÉELLES)]]","v":{"v":5437.5,"d":"5,438 €"}}]
[null,"Python","Poursuite de l’employé",{"$f":"TODAY()+220","v":"2023-11-04"},{"$f":"TODAY()+250","v":"2023-12-04"},{"$f":"TODAY()+230","v":"2023-11-14"},{"$f":"TODAY()+259","v":"2023-12-13"},250,255,{"$f":"DAYS360(Détails[[#This Row],[DATE DE DÉBUT ESTIMÉE]],Détails[[#This Row],[DATE DE FIN ESTIMÉE]],FALSE)","v":30},{"$f":"DAYS360(Détails[[#This Row],[DATE DE DÉBUT RÉELLE]],Détails[[#This Row],[DATE DE FIN RÉELLE]],FALSE)","v":29},{"$f":"INDEX(Paramètres[],MATCH(Détails[[#This Row],[TYPE DE PROJET]],Paramètres[TYPE DE PROJET],0),MATCH(Détails[[#Headers],[PARTENAIRE GÉNÉRAL]],Paramètres[#Headers],0))*INDEX('PARAMÈTRES DU PROJET'!$B$12:$H$12,1,MATCH(Détails[[#Headers],[PARTENAIRE GÉNÉRAL]],Paramètres[#Headers],0))*Détails[[#This Row],[HEURES DE TRAVAIL (ESTIMÉES)]]","v":{"v":17500,"d":"17,500 €"}},{"$f":"INDEX(Paramètres[],MATCH(Détails[[#This Row],[TYPE DE PROJET]],Paramètres[TYPE DE PROJET],0),MATCH(Détails[[#Headers],[AVOCAT D’AFFAIRES]],Paramètres[#Headers],0))*INDEX('PARAMÈTRES DU PROJET'!$B$12:$H$12,1,MATCH(Détails[[#Headers],[AVOCAT D’AFFAIRES]],Paramètres[#Headers],0))*Détails[[#This Row],[HEURES DE TRAVAIL (ESTIMÉES)]]","v":{"v":6250,"d":"6,250 €"}},{"$f":"INDEX(Paramètres[],MATCH(Détails[[#This Row],[TYPE DE PROJET]],Paramètres[TYPE DE PROJET],0),MATCH(Détails[[#Headers],[AVOCAT PLAIDANT]],Paramètres[#Headers],0))*INDEX('PARAMÈTRES DU PROJET'!$B$12:$H$12,1,MATCH(Détails[[#Headers],[AVOCAT PLAIDANT]],Paramètres[#Headers],0))*Détails[[#This Row],[HEURES DE TRAVAIL (ESTIMÉES)]]","v":{"v":30000,"d":"30,000 €"}},{"$f":"INDEX(Paramètres[],MATCH(Détails[[#This Row],[TYPE DE PROJET]],Paramètres[TYPE DE PROJET],0),MATCH(Détails[[#Headers],[AVOCAT SPÉCIALISTE DE LA PROPRIÉTÉ INTELLECTUELLE]],Paramètres[#Headers],0))*INDEX('PARAMÈTRES DU PROJET'!$B$12:$H$12,1,MATCH(Détails[[#Headers],[AVOCAT SPÉCIALISTE DE LA PROPRIÉTÉ INTELLECTUELLE]],Paramètres[#Headers],0))*Détails[[#This Row],[HEURES DE TRAVAIL (ESTIMÉES)]]","v":{"v":0,"d":"0 €"}},{"$f":"INDEX(Paramètres[],MATCH(Détails[[#This Row],[TYPE DE PROJET]],Paramètres[TYPE DE PROJET],0),MATCH(Détails[[#Headers],[AVOCAT SPÉCIALISTE DU DROIT DE LA FAILLITE]],Paramètres[#Headers],0))*INDEX('PARAMÈTRES DU PROJET'!$B$12:$H$12,1,MATCH(Détails[[#Headers],[AVOCAT SPÉCIALISTE DU DROIT DE LA FAILLITE]],Paramètres[#Headers],0))*Détails[[#This Row],[HEURES DE TRAVAIL (ESTIMÉES)]]","v":{"v":0,"d":"0 €"}},{"$f":"INDEX(Paramètres[],MATCH(Détails[[#This Row],[TYPE DE PROJET]],Paramètres[TYPE DE PROJET],0),MATCH(Détails[[#Headers],[PERSONNEL ADMINISTRATIF]],Paramètres[#Headers],0))*INDEX('PARAMÈTRES DU PROJET'!$B$12:$H$12,1,MATCH(Détails[[#Headers],[PERSONNEL ADMINISTRATIF]],Paramètres[#Headers],0))*Détails[[#This Row],[HEURES DE TRAVAIL (ESTIMÉES)]]","v":{"v":9375,"d":"9,375 €"}},{"$f":"INDEX(Paramètres[],MATCH(Détails[[#This Row],[TYPE DE PROJET]],Paramètres[TYPE DE PROJET],0),MATCH(Détails[[#Headers],[PARTENAIRE GÉNÉRAL]],Paramètres[#Headers],0))*INDEX('PARAMÈTRES DU PROJET'!$B$12:$H$12,1,MATCH(Détails[[#Headers],[PARTENAIRE GÉNÉRAL]],Paramètres[#Headers],0))*Détails[[#This Row],[HEURES DE TRAVAIL (RÉELLES)]]","v":{"v":17850,"d":"17,850 €"}},{"$f":"INDEX(Paramètres[],MATCH(Détails[[#This Row],[TYPE DE PROJET]],Paramètres[TYPE DE PROJET],0),MATCH(Détails[[#Headers],[AVOCAT D’AFFAIRES]],Paramètres[#Headers],0))*INDEX('PARAMÈTRES DU PROJET'!$B$12:$H$12,1,MATCH(Détails[[#Headers],[AVOCAT D’AFFAIRES]],Paramètres[#Headers],0))*Détails[[#This Row],[HEURES DE TRAVAIL (RÉELLES)]]","v":{"v":6375,"d":"6,375 €"}},{"$f":"INDEX(Paramètres[],MATCH(Détails[[#This Row],[TYPE DE PROJET]],Paramètres[TYPE DE PROJET],0),MATCH(Détails[[#Headers],[AVOCAT PLAIDANT]],Paramètres[#Headers],0))*INDEX('PARAMÈTRES DU PROJET'!$B$12:$H$12,1,MATCH(Détails[[#Headers],[AVOCAT PLAIDANT]],Paramètres[#Headers],0))*Détails[[#This Row],[HEURES DE TRAVAIL (RÉELLES)]]","v":{"v":30600,"d":"30,600 €"}},{"$f":"INDEX(Paramètres[],MATCH(Détails[[#This Row],[TYPE DE PROJET]],Paramètres[TYPE DE PROJET],0),MATCH(Détails[[#Headers],[AVOCAT SPÉCIALISTE DE LA PROPRIÉTÉ INTELLECTUELLE]],Paramètres[#Headers],0))*INDEX('PARAMÈTRES DU PROJET'!$B$12:$H$12,1,MATCH(Détails[[#Headers],[AVOCAT SPÉCIALISTE DE LA PROPRIÉTÉ INTELLECTUELLE]],Paramètres[#Headers],0))*Détails[[#This Row],[HEURES DE TRAVAIL (RÉELLES)]]","v":{"v":0,"d":"0 €"}},{"$f":"INDEX(Paramètres[],MATCH(Détails[[#This Row],[TYPE DE PROJET]],Paramètres[TYPE DE PROJET],0),MATCH(Détails[[#Headers],[AVOCAT SPÉCIALISTE DU DROIT DE LA FAILLITE]],Paramètres[#Headers],0))*INDEX('PARAMÈTRES DU PROJET'!$B$12:$H$12,1,MATCH(Détails[[#Headers],[AVOCAT SPÉCIALISTE DU DROIT DE LA FAILLITE]],Paramètres[#Headers],0))*Détails[[#This Row],[HEURES DE TRAVAIL (RÉELLES)]]","v":{"v":0,"d":"0 €"}},{"$f":"INDEX(Paramètres[],MATCH(Détails[[#This Row],[TYPE DE PROJET]],Paramètres[TYPE DE PROJET],0),MATCH(Détails[[#Headers],[PERSONNEL ADMINISTRATIF]],Paramètres[#Headers],0))*INDEX('PARAMÈTRES DU PROJET'!$B$12:$H$12,1,MATCH(Détails[[#Headers],[PERSONNEL ADMINISTRATIF]],Paramètres[#Headers],0))*Détails[[#This Row],[HEURES DE TRAVAIL (RÉELLES)]]","v":{"v":9562.5,"d":"9,563 €"}}]
[null,"TOTAL",{"$nulls":5},{"$f":"SUBTOTAL(109,Détails[HEURES DE TRAVAIL (ESTIMÉES)])","v":1500},{"$f":"SUBTOTAL(109,Détails[HEURES DE TRAVAIL (RÉELLES)])","v":1510},{"$f":"SUBTOTAL(109,Détails[DURÉE ESTIMÉE])","v":187},{"$f":"SUBTOTAL(109,Détails[DURÉE RÉELLE])","v":171}]

{"sheet":"TOTAUX DU PROJET","index":3,"n_rows":11,"n_cols":14,"rows_kept":11,"merged":[[3,2,3,7],[3,8,3,13]]}
[null,{"$f":"'PARAMÈTRES DU PROJET'!B1","v":"Mitchell, Morris, Ward, & Cook"}]
[null,{"$f":"'PARAMÈTRES DU PROJET'!B2","v":"Planification de projet pour les cabinets d’avocats"}]
[null,{"$f":"'PARAMÈTRES DU PROJET'!B3","v":"Mitchell, Morris, Ward, & Cook Confidentiel"}]
[null,null,"ESTIMÉ",{"$nulls":5},"RÉEL"]
[null,"NOM DU PROJET","PARTENAIRE GÉNÉRAL  ","AVOCAT D’AFFAIRES  ","AVOCAT PLAIDANT  ","AVOCAT SPÉCIALISTE DE LA PROPRIÉTÉ INTELLECTUELLE  ","AVOCAT SPÉCIALISTE DU DROIT DE LA FAILLITE  ","PERSONNEL ADMINISTRATIF  ","PARTENAIRE GÉNÉRAL ","AVOCAT D’AFFAIRES ","AVOCAT PLAIDANT ","AVOCAT SPÉCIALISTE DU DROIT DE LA FAILLITE ","AVOCAT SPÉCIALISTE DE LA PROPRIÉTÉ INTELLECTUELLE ","PERSONNEL ADMINISTRATIF "]
[null,"Cobalt",{"v":35000,"d":"35,000.00 €"},{"v":0,"d":"0.00 €"},{"v":75000,"d":"75,000.00 €"},{"v":0,"d":"0.00 €"},{"v":0,"d":"0.00 €"},{"v":18750,"d":"18,750.00 €"},{"v":35000,"d":"35,000.00 €"},{"v":0,"d":"0.00 €"},{"v":75000,"d":"75,000.00 €"},{"v":0,"d":"0.00 €"},{"v":0,"d":"0.00 €"},{"v":18750,"d":"18,750.00 €"}]
[null,"Europe",{"v":7000,"d":"7,000.00 €"},{"v":20000,"d":"20,000.00 €"},{"v":0,"d":"0.00 €"},{"v":0,"d":"0.00 €"},{"v":0,"d":"0.00 €"},{"v":12500,"d":"12,500.00 €"},{"v":7700,"d":"7,700.00 €"},{"v":22000,"d":"22,000.00 €"},{"v":0,"d":"0.00 €"},{"v":0,"d":"0.00 €"},{"v":0,"d":"0.00 €"},{"v":13750,"d":"13,750.00 €"}]
[null,"Iris",{"v":5250,"d":"5,250.00 €"},{"v":0,"d":"0.00 €"},{"v":0,"d":"0.00 €"},{"v":24750,"d":"24,750.00 €"},{"v":0,"d":"0.00 €"},{"v":5625,"d":"5,625.00 €"},{"v":5075,"d":"5,075.00 €"},{"v":0,"d":"0.00 €"},{"v":0,"d":"0.00 €"},{"v":0,"d":"0.00 €"},{"v":23925,"d":"23,925.00 €"},{"v":5437.5,"d":"5,437.50 €"}]
[null,"Poisson rouge",{"v":14000,"d":"14,000.00 €"},{"v":40000,"d":"40,000.00 €"},{"v":0,"d":"0.00 €"},{"v":11000,"d":"11,000.00 €"},{"v":0,"d":"0.00 €"},{"v":20000,"d":"20,000.00 €"},{"v":13650,"d":"13,650.00 €"},{"v":39000,"d":"39,000.00 €"},{"v":0,"d":"0.00 €"},{"v":0,"d":"0.00 €"},{"v":10725,"d":"10,725.00 €"},{"v":19500,"d":"19,500.00 €"}]
[null,"Python",{"v":17500,"d":"17,500.00 €"},{"v":6250,"d":"6,250.00 €"},{"v":30000,"d":"30,000.00 €"},{"v":0,"d":"0.00 €"},{"v":0,"d":"0.00 €"},{"v":9375,"d":"9,375.00 €"},{"v":17850,"d":"17,850.00 €"},{"v":6375,"d":"6,375.00 €"},{"v":30600,"d":"30,600.00 €"},{"v":0,"d":"0.00 €"},{"v":0,"d":"0.00 €"},{"v":9562.5,"d":"9,562.50 €"}]
[null,"Total général",{"v":78750,"d":"78,750.00 €"},{"v":66250,"d":"66,250.00 €"},{"v":105000,"d":"105,000.00 €"},{"v":35750,"d":"35,750.00 €"},{"v":0,"d":"0.00 €"},{"v":66250,"d":"66,250.00 €"},{"v":79275,"d":"79,275.00 €"},{"v":67375,"d":"67,375.00 €"},{"v":105600,"d":"105,600.00 €"},{"v":0,"d":"0.00 €"},{"v":34650,"d":"34,650.00 €"},{"v":67000,"d":"67,000.00 €"}]